fUSD/lending_fUSD_20260112
["ID","MTS","AMOUNT","RATE_DAILY","PERIOD"]
[401440892,1768219840543,-993.49118932,0.00017621,2]
[401440893,1768219840552,-1000.0,0.00017621,2]
[401440894,1768219840562,-500.38035534,0.00017621,2]
[401440895,1768219840572,-4458.74645977,0.00017622,2]
[401440896,1768219840582,-150.0,0.0001763,2]
[401440897,1768219840592,-150.0,0.00017655,2]
[401440898,1768219840601,-150.0,0.00017679,2]
[401440899,1768219840611,-225.26,0.0001768,5]
[401440900,1768219840621,-150.0,0.000177,2]
[401440901,1768219840631,-150.0,0.000177,2]
[401440902,1768219840640,-150.0,0.000177,2]
[401440903,1768219840651,-1093.58531312,0.000177,2]
[401440904,1768219840660,-150.0,0.00017704,2]
[401440905,1768219840670,-1000.0,0.00017709,2]
[401440906,1768219840680,-150.0,0.00017729,2]
[401440907,1768219840690,-150.0,0.00017753,2]
[401440908,1768219840699,-150.0,0.00017775,2]
[401440909,1768219840709,-150.0,0.00017778,2]
[401440910,1768219840719,-150.0,0.000178,2]
[401440911,1768219840728,-150.0,0.000178,2]
[401440912,1768219840738,-150.0,0.00017803,2]
[401440913,1768219840748,-156.587,0.00017807,2]
[401440914,1768219840758,-910.24842296,0.0001782,2]
[401440915,1768219840768,-96513.9239951,0.00017826,2]
[401440916,1768219840777,-150.0,0.00017827,2]
[401440917,1768219840787,-83171.52894996,0.0001783,2]
[401440918,1768219840797,-500.0,0.00017847,2]
[401440919,1768219840808,-25086.23665315,0.00017848,2]
[401440920,1768219840817,-150.0,0.00017852,2]
[401440921,1768219840827,-150.0,0.00017877,2]
[401440922,1768219840837,-1054.4366,0.000179,2]
[401440923,1768219840846,-3284.70592862,0.000179,2]
[401440924,1768219840855,-1918.39432208,0.000179,2]
[401440925,1768219840864,-239.44755982,0.000179,3]
[401440926,1768219840874,-342.06341134,0.000179,2]
[401440927,1768219840884,-156.50350245,0.000179,2]
[401440928,1768219840894,-696.76538345,0.000179,2]
[401440929,1768219840904,-500.0,0.000179,2]
[401440930,1768219840913,-500.0,0.000179,2]
[401440931,1768219840923,-500.0,0.000179,2]
[401440932,1768219840933,-500.0,0.000179,2]
[401440933,1768219840942,-500.0,0.000179,2]
[401440934,1768219840952,-500.0,0.000179,2]
[401440935,1768219840962,-500.0,0.000179,2]
[401440936,1768219840971,-500.0,0.000179,2]
[401440937,1768219840981,-500.0,0.000179,2]
[401440938,1768219840990,-500.0,0.000179,2]
[401440939,1768219841000,-500.0,0.000179,2]
[401440940,1768219841009,-500.0,0.000179,2]
[401440941,1768219841019,-500.0,0.000179,2]
[401440942,1768219841028,-500.0,0.000179,2]
[401440943,1768219841038,-500.0,0.000179,2]
[401440944,1768219841047,-500.0,0.000179,2]
[401440945,1768219841057,-500.0,0.000179,2]
[401440946,1768219841067,-500.0,0.000179,2]
[401440947,1768219841076,-500.0,0.000179,2]
[401440948,1768219841086,-500.0,0.000179,2]
[401440949,1768219841095,-500.0,0.000179,2]
[401440950,1768219841104,-500.0,0.000179,2]
[401440951,1768219841113,-500.0,0.000179,2]
[401440952,1768219841122,-500.0,0.000179,2]
[401440953,1768219841132,-500.0,0.000179,2]
[401440954,1768219841141,-500.0,0.000179,2]
[401440955,1768219841151,-500.0,0.000179,2]
[401440956,1768219841160,-500.0,0.000179,2]
[401440957,1768219841169,-500.0,0.000179,2]
[401440958,1768219841178,-500.0,0.000179,2]
[401440959,1768219841187,-500.0,0.000179,2]
[401440960,1768219841197,-500.0,0.000179,2]
[401440961,1768219841207,-500.0,0.000179,2]
[401440962,1768219841216,-500.0,0.000179,2]
[401440963,1768219841225,-500.0,0.000179,2]
[401440964,1768219841234,-500.0,0.000179,2]
[401440965,1768219841243,-500.0,0.000179,2]
[401440966,1768219841252,-500.0,0.000179,2]
[401440967,1768219841262,-500.0,0.000179,2]
[401440968,1768219841271,-500.0,0.000179,2]
[401440969,1768219841280,-500.0,0.000179,2]
[401440970,1768219841289,-500.0,0.000179,2]
[401440971,1768219841299,-500.0,0.000179,2]
[401440972,1768219841308,-500.0,0.000179,2]
[401440973,1768219841318,-500.0,0.000179,2]
[401440974,1768219841330,-500.0,0.000179,2]
[401440975,1768219841340,-301.9716591,0.000179,2]
[401440976,1768219841350,-150.0,0.00017901,2]
[401440977,1768219841359,-150.0,0.00017926,2]
[401440978,1768219841369,-25000.0,0.0001793,3]
[401440979,1768219841379,-25000.0,0.00017938,3]
[401440980,1768219841388,-8938.01619335,0.00017947,3]
[401440981,1768219841405,-16061.98380665,0.00017947,3]
[401440982,1768219841414,-150.0,0.00017951,2]
[401440983,1768219841423,-25000.0,0.00017956,3]
[401440984,1768219841433,-25000.0,0.00017965,3]
[401440985,1768219841443,-501.47661499,0.00017973,2]
[401440986,1768219841452,-500.0,0.00017973,2]
[401440987,1768219841461,-500.0,0.00017973,2]
[401440988,1768219841470,-500.0,0.00017973,2]
[401440989,1768219841480,-500.0,0.00017973,2]
[401440990,1768219841489,-500.55153068,0.00017973,2]
[401440991,1768219841499,-645.16964219,0.00017973,2]
[401440992,1768219841508,-501.38258594,0.00017973,2]
[401440993,1768219841517,-501.10571804,0.00017973,2]
[401440994,1768219841527,-500.0,0.00017973,2]
[401440995,1768219841536,-160.50727141,0.00017973,2]
[401440996,1768219841545,-500.0,0.00017973,2]
[401440997,1768219841554,-515.69548792,0.00017973,2]
[401440998,1768219841563,-554.22609528,0.00017973,2]
[401440999,1768219841573,-500.0,0.00017973,2]
[401441000,1768219841583,-505.68975855,0.00017973,2]
[401441001,1768219841592,-162.85500377,0.00017973,2]
[401441002,1768219841602,-644.05438872,0.00017973,2]
[401441003,1768219841612,-500.0,0.00017973,2]
[401441004,1768219841621,-273.6592917,0.00017973,2]
[401441005,1768219841630,-501.12911319,0.00017973,2]
[401441006,1768219841640,-502.23302881,0.00017973,2]
[401441007,1768219841650,-502.71154611,0.00017973,2]
[401441008,1768219841660,-599.69310789,0.00017973,2]
[401441009,1768219841669,-500.0,0.00017973,2]
[401441010,1768219841679,-500.0,0.00017973,2]
[401441011,1768219841688,-500.0,0.00017973,2]
[401441012,1768219841697,-249.33886025,0.00017973,2]
[401441013,1768219841707,-500.0,0.00017973,2]
[401441014,1768219841716,-500.0,0.00017973,2]
[401441015,1768219841726,-500.0,0.00017973,2]
[401441016,1768219841735,-500.0,0.00017973,2]
[401441017,1768219841744,-25000.0,0.00017974,3]
[401441018,1768219841754,-150.0,0.00017975,2]
[401441019,1768219841763,-152.92662848,0.00017982,2]
[401441020,1768219841772,-500.0,0.00017982,2]
[401441021,1768219841781,-25000.0,0.00017982,3]
[401441022,1768219841790,-917.0,0.00017984,2]
[401441023,1768219841800,-501.32,0.00017987,2]
[401441024,1768219841809,-415.15468487,0.0001799,2]
[401441025,1768219841819,-415.15468487,0.0001799,2]
[401441026,1768219841828,-25000.0,0.00017991,3]
[401441027,1768219841838,-500.0,0.00017998,2]
[401441028,1768219841847,-162.25638013,0.00017999,2]
[401441029,1768219841856,-666.0,0.00017999,2]
[401441030,1768219841866,-300.0,0.00017999,2]
[401441031,1768219841875,-300.0,0.00017999,2]
[401441032,1768219841885,-666.0,0.00017999,2]
[401441033,1768219841895,-300.0,0.00017999,2]
[401441034,1768219841904,-300.0,0.00017999,2]
[401441035,1768219841913,-300.0,0.00017999,2]
[401441036,1768219841923,-666.0,0.00017999,2]
[401441037,1768219841932,-500.0,0.00017999,2]
[401441038,1768219842192,-500.0,0.00017999,2]
[401441039,1768219842202,-500.0,0.00017999,2]
[401441040,1768219842212,-500.0,0.00017999,2]
[401441041,1768219842222,-500.0,0.00017999,2]
[401441042,1768219842231,-500.0,0.00017999,2]
[401441043,1768219842240,-500.0,0.00017999,2]
[401441044,1768219842250,-500.0,0.00017999,2]
[401441045,1768219842259,-500.0,0.00017999,2]
[401441046,1768219842269,-500.0,0.00017999,2]
[401441047,1768219842278,-500.0,0.00017999,2]
[401441048,1768219842287,-369.87509882,0.00017999,2]
[401441049,1768219842297,-666.0,0.00017999,2]
[401441050,1768219842306,-280.0,0.00018,5]
[401441051,1768219842316,-156.71525667,0.00018,2]
[401441052,1768219842327,-154.38953807,0.00018,2]
[401441053,1768219842338,-263.65847092,0.00018,2]
[401441054,1768219842348,-154.70586823,0.00018,2]
[401441055,1768219842358,-155.07098724,0.00018,2]
[401441056,1768219842368,-151.45444701,0.00018,2]
[401441057,1768219842379,-155.70825827,0.00018,2]
[401441058,1768219842389,-152.37123583,0.00018,2]
[401441059,1768219842398,-150.0,0.00018,2]
[401441060,1768219842410,-248.59699216,0.00018,2]
[401441061,1768219842421,-209.38249725,0.00018,2]
[401441062,1768219842431,-4699499.95466721,0.00018,2]
[401441063,1768219842441,-55960.35860715,0.00018,2]
[401441064,1768219842836,-69.0,0.00018,2]
[401441068,1768219843931,-1.7e-07,0.00018,2]
[401441069,1768219844305,-453.12,0.00018,2]
[401441070,1768219844318,-20900.0,0.00018,2]
[401441072,1768219845797,-2392.52408302,0.00018,2]
[401441073,1768219845840,-338.88377303,0.00018,2]
[401441074,1768219845854,-1509.01241859,0.00018,2]
[401441075,1768219845865,-64837.09927648,0.00018,2]
[401441076,1768219845893,-530.23719591,0.00018,2]
[401441077,1768219846054,-151.0,0.00017431,2]
[401441078,1768219846065,-3265.7,0.00018,2]
[401441082,1768219908866,-154.71945371,0.00012161,2]
[401441083,1768219908889,-860.91601454,0.00012161,2]
[401441084,1768219994251,999.0,0.00012516,3]
[401441085,1768220300021,-158.11278046,0.00012122,2]
[401441086,1768220300045,-300.0,0.00012122,2]
[401441087,1768220300067,-181.69200167,0.00012122,2]
[401441088,1768220300090,-150.0,0.00012126,2]
[401441089,1768220300113,-287.69830824,0.00012135,2]
[401441090,1768220359505,-150.0,0.00012033,2]
[401441091,1768220359528,-29.07901585,0.00012135,2]
[401441092,1768220359551,-195.0,0.00012138,2]
[401441093,1768220359573,-68.50006772,0.00012141,2]
[401441094,1768220362208,-179.70866927,0.00012141,2]
[401441095,1768220568991,262.49,6.269e-05,2]
[401441096,1768220569160,262.49,6.586e-05,2]
[401441097,1768220569373,262.49,6.903e-05,2]
[401441098,1768220569573,262.49,7.22e-05,2]
[401441099,1768220569769,262.49,7.537e-05,2]
[401441100,1768220570169,262.49,7.854e-05,2]
[401441101,1768220570379,262.49,8.17e-05,2]
[401441102,1768220570585,262.49,8.487e-05,2]
[401441103,1768220570779,262.49,8.804e-05,2]
[401441104,1768220571034,262.49,9.121e-05,2]
[401441105,1768220571222,262.49,9.438e-05,2]
[401441106,1768220571429,262.49,9.755e-05,2]
[401441107,1768220571664,262.49,0.00010072,2]
[401441108,1768220571876,262.49,0.00010389,2]
[401441109,1768220572065,262.49,0.00010706,2]
[401441110,1768220572272,262.49,0.00011023,2]
[401441111,1768220572467,262.49,0.0001134,2]
[401441112,1768220572680,262.49,0.00011657,2]
[401441113,1768220572893,262.49,0.00011974,2]
[401441114,1768220668168,10000.01,0.00011873,2]
[401441115,1768220668197,10000.01,0.00011873,2]
[401441116,1768220668227,10000.01,0.00011873,2]
[401441117,1768220668257,10000.01,0.00011873,2]
[401441118,1768220668285,10000.01,0.00011873,2]
[401441119,1768220668314,10000.01,0.00011873,2]
[401441120,1768220668342,10000.01,0.00011873,2]
[401441121,1768220668371,10000.01,0.00011873,2]
[401441122,1768220668400,10000.01,0.00011873,2]
[401441123,1768220668430,10000.01,0.00011873,2]
[401441124,1768220668899,-414.07977694,0.00011873,2]
[401441125,1768220672235,-250.0,0.00011873,2]
[401441126,1768220678527,-173.72034882,0.00011873,2]
[401441127,1768220680721,-207.50054291,0.00011873,2]
[401441128,1768220684363,-206.9126802,0.00011873,2]
[401441129,1768220686399,-162.0570813,0.00011873,2]
[401441130,1768220690585,-338.39666657,0.00011873,2]
[401441131,1768220692793,-220.1226802,0.00011873,2]
[401441132,1768220695634,-323.6419998,0.00011873,2]
[401441133,1768220697774,-709.3280002,0.00011824,2]
[401441134,1768220701040,-358.45070825,0.00011824,2]
[401441135,1768220702823,-292.82211161,0.00011824,2]
[401441136,1768220704828,-170.00404283,0.00011824,2]
[401441137,1768220709139,-227.8,0.00011824,2]
[401441138,1768220711336,-195.00534997,0.00011824,2]
[401441139,1768220711666,-3605.47978714,0.00011824,2]
[401441140,1768220711694,-195.0,0.00011848,2]
[401441141,1768220711723,-300.0,0.00011872,2]
[401441142,1768220711752,-599.05042572,0.00011872,2]
[401441143,1768220711941,-600.94957428,0.00011872,2]
[401441144,1768220711971,-1012.76164779,0.00011873,2]
[401441145,1768220713431,-295.90716162,0.00011873,2]
[401441146,1768220716876,-265.35230462,0.00011652,2]
[401441147,1768220719409,-495.81137759,0.00011652,2]
[401441148,1768220721595,-242.61970597,0.00011652,2]
[401441149,1768220724626,-596.10329838,0.00011652,2]
[401441150,1768220727842,-292.88949726,0.00011652,2]
[401441151,1768220729970,-296.10975086,0.00011652,2]
[401441152,1768220734351,-174.6720109,0.00011652,2]
[401441153,1768220737132,-269.66769649,0.00011652,2]
[401441154,1768220737252,-1226.1127106,0.00011652,2]
[401441155,1768220737270,-8803.19164733,0.00011652,2]
[401441156,1768220737280,-1196.81835267,0.00011873,2]
[401441157,1768220737295,-10000.01,0.00011873,2]
[401441158,1768220737310,-10000.01,0.00011873,2]
[401441159,1768220754475,-10000.01,0.00011873,2]
[401441160,1768220754794,-10000.01,0.00011873,2]
[401441161,1768220755406,-10000.01,0.00011873,2]
[401441162,1768220792143,-3966.39729103,0.00011873,2]
[401441163,1768220792247,-2067.21541794,0.00011873,2]
[401441165,1768220840091,-183.63,0.00012063,2]
[401441166,1768220840760,-249.0,0.00012141,2]
[401441167,1768220840780,-1156.62849855,0.00012177,2]
[401441168,1768220854509,500.0,0.00011773,2]
[401441169,1768220881965,9500.01,0.00011773,2]
[401441170,1768220881995,10000.01,0.00011773,2]
[401441171,1768220882025,10000.01,0.00011773,2]
[401441172,1768220882054,10000.01,0.00011773,2]
[401441173,1768220882087,10000.01,0.00011773,2]
[401441174,1768220882116,10000.01,0.00011773,2]
[401441175,1768220882146,10000.01,0.00011773,2]
[401441176,1768220882175,10000.01,0.00011773,2]
[401441177,1768220882202,10000.01,0.00011773,2]
[401441178,1768220882233,10000.01,0.00011773,2]
[401441179,1768220883035,-163.59538386,0.00011773,2]
[401441180,1768220885087,-250.0,0.00011773,2]
[401441181,1768220886690,-179.96458829,0.00011773,2]
[401441182,1768220889837,-206.41822793,0.00011773,2]
[401441184,1768220894233,-318.68313666,0.00011773,2]
[401441185,1768220895646,-284.67298197,0.00011773,2]
[401441186,1768220897546,-231.83004513,0.00011772,2]
[401441187,1768220901024,-412.5543034,0.00011772,2]
[401441188,1768220902528,-555.61565147,0.00011772,2]
[401441189,1768220902556,-95.40649397,0.00011773,2]
[401441190,1768220905836,-396.53446097,0.00011773,2]
[401441192,1768220908790,-296.16071329,0.00011773,2]
[401441193,1768220910955,-209.83036742,0.00011773,2]
[401441194,1768220913019,-503.15987298,0.00011773,2]
[401441195,1768220917670,-324.65243316,0.00011772,2]
[401441196,1768220922658,-23.5484495,0.00011772,2]
[401441197,1768220922682,-214.34851536,0.00011772,2]
[401441198,1768220924753,-213.14254782,0.00011772,2]
[401441199,1768220926491,-72.50893682,0.00011772,2]
[401441200,1768220926516,-112.79272213,0.00011772,2]
[401441201,1768220928461,-367.0331,0.00011772,2]
[401441202,1768220932465,-20.17417787,0.00011772,2]
[401441203,1768220932490,-183.21864461,0.00011772,2]
[401441204,1768220935248,-167.55253785,0.00011772,2]
[401441205,1768220936791,-149.22881754,0.00011772,2]
[401441206,1768220936813,-177.31275786,0.00011772,2]
[401441207,1768220939215,-323.46359392,0.00011772,2]
[401441208,1768220939249,-500.0,0.00011772,2]
[401441209,1768220939279,-500.0,0.00011772,2]
[401441210,1768220939308,-500.0,0.00011772,2]
[401441211,1768220939341,-500.0,0.00011772,2]
[401441212,1768220939371,-301.61837586,0.00011772,2]
[401441213,1768220939400,-404.65415975,0.00011772,2]
[401441214,1768220939828,-500.0,0.00011772,2]
[401441215,1768220939860,-500.0,0.00011772,2]
[401441216,1768220939893,-500.0,0.00011772,2]
[401441217,1768220939925,-440.53774094,0.00011772,2]
[401441218,1768220940101,-59.46225906,0.00011772,2]
[401441219,1768220940136,-500.0,0.00011772,2]
[401441220,1768220940170,-500.0,0.00011772,2]
[401441221,1768220940206,-500.0,0.00011772,2]
[401441222,1768220940240,-500.0,0.00011772,2]
[401441223,1768220940273,-247.69872822,0.00011772,2]
[401441224,1768220940307,-500.0,0.00011772,2]
[401441225,1768220940340,-500.0,0.00011772,2]
[401441226,1768220940386,-500.0,0.00011772,2]
[401441227,1768220940420,-500.0,0.00011772,2]
[401441228,1768220940452,-500.0,0.00011772,2]
[401441229,1768220940585,-500.0,0.00011772,2]
[401441230,1768220940620,-500.0,0.00011772,2]
[401441231,1768220940652,-500.0,0.00011772,2]
[401441232,1768220940683,-500.0,0.00011772,2]
[401441233,1768220940716,-500.0,0.00011772,2]
[401441234,1768220940747,-500.0,0.00011772,2]
[401441235,1768220940778,-284.4030855,0.00011772,2]
[401441236,1768220940809,-500.0,0.00011772,2]
[401441237,1768220940840,-618.1106138,0.00011772,2]
[401441238,1768220940870,-386.11806486,0.00011772,2]
[401441239,1768220942555,-390.97888552,0.00011773,2]
[401441240,1768220943625,-242.82934068,0.00011713,2]
[401441241,1768220945230,-527.64536032,0.00011713,2]
[401441242,1768220945256,-93.60140028,0.00011773,2]
[401441243,1768220948597,-168.55203038,0.00011773,2]
[401441244,1768220950180,-221.84483011,0.00011773,2]
[401441245,1768220951724,-222.23209753,0.00011773,2]
[401441246,1768220952634,-490.0,0.00011773,2]
[401441247,1768220954297,-166.64583723,0.00011773,2]
[401441248,1768220957154,-320.29133073,0.00011773,2]
[401441249,1768220960430,-176.80256622,0.00011773,2]
[401441250,1768220960471,-884.72243004,0.00011773,2]
[401441251,1768220962345,-451.80073499,0.00011773,2]
[401441252,1768220964911,-503.79482695,0.00011748,2]
[401441253,1768220966887,-311.8925321,0.00011748,2]
[401441254,1768220969135,-74.39264095,0.00011748,2]
[401441255,1768220969165,-404.59594404,0.00011773,2]
[401441256,1768220969605,-195.0,0.00011773,2]
[401441257,1768220972887,-424.01788079,0.00011773,2]
[401441258,1768220974840,-275.0,0.00011773,2]
[401441259,1768220976397,-179.39494252,0.00011773,2]
[401441260,1768220979128,-10000.01,0.00011773,2]
[401441261,1768220979277,-10000.01,0.00011773,2]
[401441262,1768220979442,-10000.01,0.00011773,2]
[401441263,1768220979652,-10000.01,0.00011773,2]
[401441264,1768220979840,-10000.01,0.00011773,2]
[401441265,1768220980283,-10000.01,0.00011773,2]
[401441266,1768220980415,-203.99999476,0.00011773,2]
[401441267,1768220980430,-10000.01,0.00011773,2]
[401441268,1768220980488,-10000.01,0.00011773,2]
[401441269,1768220981794,-268.51352137,0.00011773,2]
[401441270,1768220983293,-172.83258673,0.0001173,2]
[401441271,1768220984952,-289.88821402,0.0001173,2]
[401441272,1768220987213,-383.4677806,0.0001173,2]
[401441273,1768220990388,-166.66,0.0001173,2]
[401441274,1768220991831,-106.12293526,0.0001173,2]
[401441275,1768220991858,-389.69056023,0.00011773,2]
[401441276,1768220993850,-210.73445015,0.00011773,2]
[401441277,1768220997125,-202.90743206,0.00011773,2]
[401441278,1768220998428,-10000.01,0.00011773,2]
[401441279,1768220998600,-10000.01,0.00011773,2]
[401441280,1768221000402,-756.187682,0.00011773,2]
[401441281,1768221001918,-290.29070041,0.00011772,2]
[401441282,1768221006774,-9.70929959,0.00011772,2]
[401441283,1768221006796,-179.24198926,0.00011772,2]
[401441284,1768221007813,-120.75801074,0.00011772,2]
[401441285,1768221007835,-45.90198926,0.00011772,2]
[401441286,1768221012423,-200.74146327,0.00011673,2]
[401441287,1768221014471,-33.95232165,0.00011673,2]
[401441288,1768221014494,-157.66148884,0.00011772,2]
[401441289,1768221016023,-96.4365219,0.00011772,2]
[401441290,1768221016057,-285.56508999,0.00011772,2]
[401441291,1768221021695,-314.36560181,0.00011772,2]
[401441292,1768221023580,-271.38861775,0.00011772,2]
[401441293,1768221026796,-328.68069045,0.00011772,2]
[401441294,1768221026819,-133.92891256,0.00011772,2]
[401441295,1768221028564,-16.07108744,0.00011772,2]
[401441296,1768221028586,-237.09902186,0.00011772,2]
[401441297,1768221030163,-8.90097814,0.00011772,2]
[401441298,1768221030193,-230.20623127,0.00011773,2]
[401441303,1768221031893,-388.80692129,0.00011773,2]
[401441306,1768221031904,-529.74179822,0.00011773,2]
[401441307,1768221031949,-23370.33576812,0.00011773,2]
[401441308,1768221032007,-853.06165973,0.00011773,2]
[401441309,1768221032019,-889.22490028,0.00011773,2]
[401441310,1768221032030,-8358.6192992,0.00011773,2]
[401441311,1768221032041,-974.05877356,0.00011773,2]
[401441312,1768221032052,-310.5,0.00011773,2]
[401441313,1768221032064,-121216.11374788,0.00011773,2]
[401441314,1768221032075,-131679.79016512,0.00011773,2]
[401441315,1768221032086,-1254.41808677,0.00011773,2]
[401441316,1768221032097,-488.41,0.00011773,2]
[401441317,1768221032113,-925.50355784,0.00011773,2]
[401441318,1768221032125,-1617.34995375,0.00011773,2]
[401441319,1768221032167,-327.69669949,0.00011773,2]
[401441320,1768221036293,-168.12386852,0.00011772,2]
[401441321,1768221036329,-9663.76226296,0.00011773,2]
[401441322,1768221036672,-10000.01,0.00011773,2]
[401441323,1768221036885,-10000.01,0.00011773,2]
[401441324,1768221037081,-10000.01,0.00011773,2]
[401441325,1768221037208,-218.10476758,0.00011773,2]
[401441326,1768221037625,-10000.01,0.00011773,2]
[401441327,1768221037757,-10000.01,0.00011773,2]
[401441328,1768221037924,-10000.01,0.00011773,2]
[401441329,1768221038032,-1106.51028271,0.00011773,2]
[401441330,1768221038146,-2200.0,0.00011773,2]
[401441331,1768221038159,-3300.52680941,0.00011773,2]
[401441332,1768221038176,-10000.01,0.00011773,2]
[401441333,1768221038196,-410595.04753653,0.00011773,2]
[401441334,1768221038206,-500.0,0.00011773,2]
[401441335,1768221038215,-195.0,0.0001183,2]
[401441336,1768221038225,-250.0,0.00011887,2]
[401441337,1768221038235,-5942.2898268,0.00012,2]
[401441338,1768221038244,-309.6703416,0.00012068,2]
[401441339,1768221038254,-3605.84150145,0.00012177,2]
[401441340,1768221038263,-179.9646,0.00012209,2]
[401441341,1768221038273,-6708.0904,0.00012209,2]
[401441342,1768221038282,-262.49,0.00012291,2]
[401441343,1768221038292,-7761.7458,0.00012309,2]
[401441344,1768221038301,-1000.0,0.00012309,2]
[401441345,1768221038310,-24827.9708,0.00012309,2]
[401441346,1768221038320,-2500.0,0.00012309,2]
[401441347,1768221038329,-368.4825621,0.00012316,2]
[401441348,1768221038339,-738.039,0.00012316,2]
[401441349,1768221038349,-81528.87,0.00012316,2]
[401441350,1768221038359,-12187.90846757,0.00012316,2]
[401441352,1768221038368,-658.99,0.00012345,2]
[401441355,1768221038378,-1143.0,0.00012345,2]
[401441357,1768221038388,-542.9,0.00012345,2]
[401441358,1768221038397,-499.99,0.00012345,2]
[401441361,1768221038406,-9999.99,0.00012345,2]
[401441363,1768221038416,-9999.99,0.00012345,2]
[401441365,1768221038425,-3817.52,0.00012345,2]
[401441366,1768221038434,-7980.43,0.00012345,2]
[401441369,1768221038444,-9999.99,0.00012345,2]
[401441370,1768221038453,-5887.32,0.00012345,2]
[401441372,1768221038462,-9999.99,0.00012345,2]
[401441374,1768221038471,-3176.71,0.00012345,2]
[401441376,1768221038481,-999.99,0.00012345,2]
[401441378,1768221038490,-150.99,0.00012345,2]
[401441380,1768221038499,-9999.99,0.00012345,2]
[401441381,1768221038508,-150.99,0.00012345,2]
[401441382,1768221038518,-9999.99,0.00012402,2]
[401441383,1768221038527,-426.39,0.00012402,2]
[401441384,1768221038536,-107961.99,0.00012402,2]
[401441385,1768221038545,-299.99,0.00012402,2]
[401441386,1768221038555,-1466.28,0.00012402,2]
[401441387,1768221038564,-200.0,0.00012402,2]
[401441388,1768221038573,-500.0,0.00012402,2]
[401441389,1768221038582,-500.0,0.00012402,2]
[401441390,1768221038592,-500.0,0.00012402,2]
[401441391,1768221038601,-500.0,0.00012402,2]
[401441392,1768221038611,-500.0,0.00012402,2]
[401441393,1768221038620,-500.0,0.00012402,2]
[401441394,1768221038644,-500.0,0.00012402,2]
[401441395,1768221038654,-500.0,0.00012402,2]
[401441396,1768221038663,-500.0,0.00012402,2]
[401441397,1768221038673,-500.0,0.00012402,2]
[401441398,1768221038685,-500.0,0.00012402,2]
[401441399,1768221038694,-500.0,0.00012402,2]
[401441400,1768221038704,-466.97,0.00012402,2]
[401441401,1768221038714,-500.0,0.00012402,2]
[401441402,1768221038724,-500.0,0.00012402,2]
[401441403,1768221038733,-500.0,0.00012402,2]
[401441404,1768221038742,-500.0,0.00012402,2]
[401441405,1768221038753,-151.0,0.00012402,2]
[401441406,1768221038763,-200.0,0.00012402,2]
[401441407,1768221038773,-151.0,0.00012402,2]
[401441408,1768221038782,-151.0,0.00012402,2]
[401441409,1768221038792,-151.0,0.00012402,2]
[401441410,1768221038801,-151.0,0.00012402,2]
[401441411,1768221038811,-151.0,0.00012402,2]
[401441412,1768221038821,-184.03,0.00012402,2]
[401441413,1768221038831,-151.0,0.00012402,2]
[401441414,1768221038840,-151.0,0.00012402,2]
[401441415,1768221038850,-151.0,0.00012402,2]
[401441416,1768221038860,-151.0,0.00012402,2]
[401441417,1768221038870,-151.0,0.00012402,2]
[401441418,1768221038880,-151.0,0.00012402,2]
[401441419,1768221038890,-151.0,0.00012402,2]
[401441420,1768221038899,-151.0,0.00012402,2]
[401441421,1768221038909,-500.0,0.00012402,2]
[401441422,1768221038919,-151.0,0.00012402,2]